bitfinex-derivatives/quotes_ETHF0:USTF0_20250309
["timestamp","ask_amount","ask_price","bid_price","bid_amount"]
[1741558642586,0.9891,2022.2,2022.1,0.00741436]
[1741558642888,3.2078,2022.4,2022.1,0.00741436]
[1741558643087,4.19682,2022.4,2022.1,0.99652436]
[1741558643392,0.65951436,2022.6,2022.1,0.00741436]
[1741558643685,0.65951436,2022.6,2022.1,2.52141436]
[1741558643884,0.65951436,2022.6,2022.4,0.98899]
[1741558644183,0.65951436,2022.6,2022.3,3.2078]
[1741558644391,1.64843436,2022.6,2022.3,4.19681]
[1741558644587,0.65951436,2022.6,2022.3,3.2078]
[1741558644787,0.00741436,2022.6,2022.5,0.98895]
[1741558644986,0.00741436,2022.6,2022.5,3.49895]
[1741558645379,0.00741436,2022.6,2022.5,2.51]
[1741558645584,0.00741436,2022.6,2022.5,3.49895]
[1741558646077,0.00741436,2022.6,2022.5,2.51]
[1741558646280,0.00741436,2022.6,2022.5,3.49895]
[1741558646886,0.00741436,2022.6,2022.5,0.98895]
[1741558647086,0.00741436,2022.6,2022.4,2.949]
[1741558647484,0.00741436,2022.6,2022.5,0.98895]
[1741558647981,0.00741436,2022.6,2022.5,4.98895]
[1741558649395,0.00741436,2022.6,2022.5,7.93795]
[1741558649994,0.00741436,2022.6,2022.5,3.93795]
[1741558650488,0.00741436,2022.6,2022.5,2.949]
[1741558650895,0.00741436,2022.6,2022.5,3.93795]
[1741558651096,0.00741436,2022.6,2022.5,2.949]
[1741558651796,0.00741436,2022.6,2022.5,3.93795]
[1741558652400,0.00741436,2022.6,2022.5,2.949]
[1741558652698,0.00741436,2022.6,2022.5,3.93795]
[1741558655097,0.00741436,2022.6,2022.5,0.98895]
[1741558659200,3.2078,2023.2,2023.1,0.98866]
[1741558659406,3.2078,2023.2,2022.8,8.6368]
[1741558659598,3.2078,2023.2,2023.0,0.9887]
[1741558659798,4.19641,2023.2,2023.1,0.98866]
[1741558659996,3.2078,2023.2,2023.1,0.98866]
[1741558660703,0.69911436,2023.4,2022.9,2.949]
[1741558660904,1.68763436,2023.4,2023.2,0.98857]
[1741558661100,0.69911436,2023.4,2023.3,0.98856]
[1741558661706,0.00741436,2023.4,2023.3,0.98856]
[1741558662300,0.00741436,2023.4,2023.3,3.93756]
[1741558662507,0.6961,2024.2,2024.0,0.98819]
[1741558662799,3.2078,2024.4,2024.0,0.98817]
[1741558662800,4.5295,2024.4,2024.0,0.98817]
[1741558662999,0.98828,2023.9,2023.7,5.431]
[1741558663194,3.2078,2024.1,2023.8,0.98831]
[1741558663409,1.3217,2024.4,2024.1,0.98816]
[1741558663603,1.3217,2024.4,2023.8,3.7022]
[1741558663795,1.3217,2024.4,2023.7,5.431]
[1741558663796,0.98824,2024.0,2023.7,5.431]
[1741558664000,4.19595,2024.2,2023.9,0.98823]
[1741558664200,4.19595,2024.2,2023.7,5.431]
[1741558664400,3.2078,2024.2,2024.1,0.98817]
[1741558664697,0.98814,2024.2,2023.7,5.431]
[1741558664899,1.3217,2024.4,2023.7,5.431]
[1741558665104,0.98809,2024.3,2024.1,0.98815]
[1741558665309,1.3217,2024.4,2023.8,3.2078]
[1741558665502,1.3217,2024.4,2024.3,0.98807]
[1741558666098,3.8538,2024.8,2024.2,3.2078]
[1741558666305,0.98788,2024.7,2024.5,0.98794]
[1741558666504,4.84165,2024.8,2024.6,0.98792]
[1741558667009,0.98788,2024.7,2024.5,0.98795]
[1741558667211,4.84166,2024.8,2024.6,0.9879]
[1741558668096,3.8538,2024.8,2024.6,0.98791]
[1741558668303,3.2078,2024.8,2024.2,9.27235]
[1741558668505,1.65418,2024.9,2024.7,0.98787]
[1741558668700,1.65418,2024.9,2024.6,3.2078]
[1741558668901,0.98784,2024.8,2024.6,0.9879]
[1741558669208,0.6664,2024.9,2024.5,2.473]
[1741558669409,0.98786,2024.8,2024.6,0.98792]
[1741558669710,0.6664,2024.9,2024.5,2.473]
[1741558670103,0.98783,2024.8,2024.6,0.98789]
[1741558670305,0.6664,2024.9,2024.5,2.473]
[1741558670504,0.98783,2024.8,2024.6,0.98788]
[1741558670804,1.6542,2024.9,2024.7,0.98786]
[1741558671005,0.98783,2024.8,2024.5,2.473]
[1741558671205,0.6664,2024.9,2024.5,5.422]
[1741558671402,0.6664,2024.9,2024.8,0.98783]
[1741558671999,0.6699,2025.0,2024.9,0.98778]
[1741558672310,0.6699,2025.0,2024.7,3.2078]
[1741558672507,0.6699,2025.0,2024.8,0.98781]
[1741558672710,1.65764,2025.0,2024.8,0.98781]
[1741558672913,0.6699,2025.0,2024.5,5.422]
[1741558673112,0.98789,2024.7,2024.6,0.98792]
[1741558673404,0.6699,2025.0,2024.5,5.422]
[1741558673606,0.98784,2024.8,2024.6,0.98792]
[1741558673806,0.98781,2024.9,2024.7,0.98787]
[1741558674007,0.6699,2025.0,2024.7,0.98787]
[1741558674205,0.9878,2024.9,2024.7,0.98787]
[1741558674702,0.98784,2024.8,2024.5,5.422]
[1741558674907,0.98782,2024.9,2024.7,0.98787]
[1741558675105,0.98783,2024.8,2024.7,0.98785]
[1741558675412,0.98781,2024.9,2024.8,0.9878]
[1741558675712,0.98781,2024.9,2024.7,0.98786]
[1741558675905,0.6699,2025.0,2024.5,5.422]
[1741558676105,0.6699,2025.0,2024.8,0.98781]
[1741558676305,0.6699,2025.0,2024.9,0.98778]
[1741558676606,1.65763,2025.0,2024.7,3.2078]
[1741558676807,0.98786,2024.8,2024.6,0.98789]
[1741558677014,0.98786,2024.8,2024.5,5.422]
[1741558677316,0.98786,2024.8,2024.7,0.98787]
[1741558677703,3.2078,2024.8,2024.5,2.949]
[1741558677908,3.2078,2024.8,2024.5,3.93696]
[1741558678103,0.98792,2024.6,2024.5,2.949]
[1741558678408,2.46994,2024.5,2024.1,2.46541436]
[1741558678614,0.98812,2024.2,2024.1,2.46541436]
[1741558679307,0.98812,2024.2,2024.1,3.45358436]
[1741558679705,0.98811,2024.3,2024.1,3.45358436]
[1741558679909,0.98811,2024.3,2024.2,0.98812]
[1741558680122,0.7075,2024.5,2024.4,0.98802]
[1741558680415,0.9881,2024.3,2024.1,5.67321436]
[1741558680616,3.2078,2024.4,2024.1,2.46441436]
[1741558680810,0.98809,2024.3,2024.2,0.98811]
[1741558681007,3.2078,2024.4,2024.1,2.46441436]
[1741558681214,0.98812,2024.2,2024.1,2.46441436]
[1741558682012,0.98812,2024.2,2024.1,3.45258436]
[1741558682203,0.98812,2024.2,2024.1,2.46441436]
[1741558682610,3.2078,2024.4,2024.1,3.45258436]
[1741558682906,0.98812,2024.2,2024.1,3.45258436]
[1741558683317,0.98812,2024.2,2024.1,2.46441436]
[1741558683519,0.98812,2024.2,2024.1,0.00741436]
[1741558684415,0.98812,2024.2,2024.1,0.99556436]
[1741558684607,0.98812,2024.2,2024.1,0.00741436]
[1741558685116,0.98831,2023.8,2023.7,6.39535]
[1741558685308,3.2078,2024.1,2023.7,2.458]
[1741558685510,0.98826,2024.0,2023.8,0.98828]
[1741558685709,0.98826,2024.0,2023.9,0.98827]
[1741558685910,0.98828,2023.9,2023.8,0.98829]
[1741558686209,3.21521436,2024.1,2023.7,2.458]
[1741558686409,0.98824,2024.0,2023.7,2.458]
[1741558686712,0.98827,2023.9,2023.8,0.98827]
[1741558687013,0.98836,2023.7,2023.6,0.00741436]
[1741558687207,2.47108,2023.6,2023.1,2.457]
[1741558687417,0.9887,2023.0,2022.9,0.98872]
[1741558687715,3.2078,2023.4,2023.0,0.98868]
[1741558687920,0.98866,2023.1,2023.0,0.98868]
[1741558688112,0.98882,2022.8,2022.6,6.6512]
[1741558688313,0.6622,2023.3,2022.8,0.00741436]
[1741558688516,0.9887,2023.0,2022.9,2.458]
[1741558688817,3.2078,2023.1,2022.9,2.458]
[1741558689122,0.98875,2022.9,2022.8,0.00741436]
[1741558689814,5.6658,2023.1,2022.4,2.949]
[1741558690022,0.6399,2023.2,2022.4,9.9441]
[1741558690213,3.2078,2023.1,2022.4,4.59976]
[1741558690420,3.2078,2022.8,2022.4,2.949]
[1741558690720,0.98895,2022.5,2022.4,2.949]
[1741558690919,4.19677,2022.5,2022.4,0.00741436]
[1741558691222,0.98897,2022.5,2022.4,0.00741436]
[1741558691416,0.98877,2022.9,2022.4,0.00741436]
[1741558691614,0.98881,2022.8,2022.6,0.98889]
[1741558691816,0.98895,2022.5,2022.4,0.00741436]
[1741558692015,4.19675,2022.5,2022.4,0.00741436]
[1741558692208,0.9892,2022.0,2021.8,6.39927]
[1741558692409,3.2078,2021.9,2021.6,2.461]
[1741558692618,3.2078,2021.9,2021.8,0.98929]
[1741558692822,0.98912,2022.2,2021.9,0.98922]
[1741558693022,0.98917,2022.1,2021.8,0.98925]
[1741558693317,3.2078,2022.3,2022.2,0.9891]
[1741558693517,3.2078,2022.3,2022.2,0.98905]
[1741558693710,3.2078,2022.6,2022.0,2.461]
[1741558693913,3.2078,2022.9,2022.3,2.47263]
[1741558694208,3.2078,2022.9,2022.7,0.98881]
[1741558694413,3.2078,2022.9,2022.4,2.467]
[1741558694717,3.2078,2022.8,2022.4,2.467]
[1741558695017,0.98895,2022.5,2022.4,2.467]
[1741558695218,3.8992,2022.8,2022.4,2.467]
[1741558695617,3.2078,2022.5,2022.0,2.949]
[1741558695823,0.9891,2022.2,2022.0,0.98916]
[1741558696324,3.2078,2022.5,2022.0,0.98916]
[1741558696624,3.2078,2022.5,2021.9,2.467]
[1741558696919,0.6825,2022.7,2022.4,0.98899]
[1741558697123,0.98892,2022.6,2022.3,0.98902]
[1741558697621,0.6825,2022.7,2022.5,0.98895]
[1741558697821,3.8992,2022.8,2022.3,2.464]
[1741558698017,0.989,2022.4,2022.3,2.464]
[1741558698216,3.2078,2022.5,2022.3,2.464]
[1741558698618,3.2078,2022.5,2022.4,0.989]
[1741558698920,3.2078,2022.5,2022.3,2.464]
[1741558699117,4.19676,2022.5,2022.3,2.464]
[1741558699321,3.2078,2022.5,2022.3,3.45304]
[1741558699627,0.69931436,2022.9,2022.3,5.413]
[1741558699923,0.69931436,2022.9,2022.5,0.98893]
[1741558700119,3.2078,2022.8,2022.4,0.7008]
[1741558700322,4.19661,2022.8,2022.4,0.7008]
[1741558700622,3.2078,2022.8,2022.5,0.98892]
[1741558700820,0.98887,2022.7,2022.4,0.7008]
[1741558701016,0.98887,2022.7,2022.5,0.98894]
[1741558701210,0.98887,2022.7,2022.4,4.16576]
[1741558701414,0.98887,2022.7,2022.5,0.98894]
[1741558701715,4.19663,2022.8,2022.5,0.98894]
[1741558702325,0.98886,2022.7,2022.5,0.98894]
[1741558702524,3.2078,2022.8,2022.4,2.476]
[1741558702816,0.98885,2022.7,2022.4,2.476]
[1741558703016,3.2078,2022.8,2022.4,2.476]
[1741558703418,0.989,2022.4,2022.3,2.949]
[1741558703813,0.98917,2022.1,2021.9,4.19703]
[1741558704018,0.98919,2022.0,2021.9,3.2078]
[1741558704326,3.2078,2022.2,2021.7,2.47641436]
[1741558704627,0.98929,2021.8,2021.7,2.47641436]
[1741558705422,0.98929,2021.8,2021.7,0.00741436]
[1741558705620,3.2078,2022.2,2021.7,0.00741436]
[1741558705927,4.19694,2022.2,2022.0,0.98917]
[1741558706126,0.98914,2022.1,2022.0,0.98917]
[1741558706527,3.2078,2022.2,2022.0,0.98917]
[1741558706821,3.2078,2022.2,2022.1,0.98914]
[1741558707029,3.2078,2022.6,2022.0,2.949]
[1741558707921,4.19673,2022.6,2022.5,0.98895]
[1741558708126,3.2078,2022.6,2022.1,5.68067]
[1741558708324,3.2078,2022.6,2022.5,0.98895]
[1741558709028,1.66033,2022.8,2022.6,0.98888]
[1741558709626,0.98885,2022.7,2022.3,2.461]
[1741558709924,0.69761436,2022.9,2022.3,2.461]
[1741558709925,0.69761436,2022.9,2022.4,3.2078]
[1741558710123,0.69761436,2022.9,2022.4,6.35082]
[1741558710321,0.98881,2022.8,2022.6,0.98886]
[1741558710528,0.99619436,2022.9,2022.7,0.98884]
[1741558711629,0.00741436,2022.9,2022.8,0.9888]
[1741558712724,0.99616436,2022.9,2022.7,0.98881]
[1741558712926,0.00741436,2022.9,2022.4,6.35085]
[1741558713223,0.00741436,2022.9,2022.7,0.9888]
[1741558713420,0.99617436,2022.9,2022.7,0.9888]
[1741558713930,0.00741436,2022.9,2022.4,3.8784]
[1741558714127,0.00741436,2022.9,2022.8,0.9888]
[1741558715328,0.00741436,2022.9,2022.7,2.46]
[1741558715721,0.00741436,2022.9,2022.8,0.9888]
[1741558716024,0.00741436,2022.9,2022.8,3.9378]
[1741558716222,0.00741436,2022.9,2022.8,4.619]
[1741558717020,3.2078,2023.6,2022.9,2.47183]
[1741558717222,3.2078,2023.6,2023.0,2.949]
[1741558717426,3.2078,2023.6,2023.5,0.98846]
[1741558717633,4.19605,2024.0,2023.8,0.98831]
[1741558717821,3.2078,2024.0,2023.7,0.98833]
[1741558718021,4.19606,2024.0,2023.7,0.98833]
[1741558718435,3.2078,2024.0,2023.6,0.00741436]
[1741558718633,0.98827,2023.9,2023.6,0.00741436]
[1741558718832,0.98827,2023.9,2023.7,0.98836]
[1741558719034,3.2078,2024.0,2023.7,0.98836]
[1741558719035,4.19605,2024.0,2023.7,0.98836]
[1741558719235,0.98827,2023.9,2023.7,0.98836]
[1741558719442,4.19605,2024.0,2023.7,0.98836]
[1741558719926,3.2078,2024.0,2023.6,0.99581436]
[1741558720125,0.98832,2023.8,2023.6,0.99581436]
[1741558720328,3.2078,2024.0,2023.6,0.00741436]
[1741558720927,4.19616,2023.7,2023.6,0.00741436]
[1741558721125,0.98856,2023.3,2023.2,2.949]
[1741558721332,4.19636,2023.3,2023.2,2.949]
[1741558721527,4.19636,2023.3,2023.0,2.459]
[1741558721726,4.19636,2023.3,2022.7,7.4829]
[1741558721727,3.2078,2023.3,2022.7,4.2751]
[1741558721927,3.2078,2023.3,2022.8,2.459]
[1741558722133,3.2078,2023.0,2022.8,2.46641436]
[1741558722333,0.98875,2022.9,2022.8,2.46641436]
[1741558723943,0.98875,2022.9,2022.8,0.00741436]
[1741558724135,0.989,2022.4,2022.3,5.408]
[1741558724337,0.989,2022.4,2022.3,2.459]
[1741558724540,3.2078,2022.7,2022.1,2.949]
[1741558724741,0.98901,2022.4,2022.2,0.98907]
[1741558725035,0.9891,2022.2,2022.1,2.459]
[1741558725435,0.9891,2022.2,2022.1,0.00741436]
[1741558726236,3.2078,2022.4,2022.1,0.00741436]
[1741558726438,0.9891,2022.2,2022.1,0.00741436]
[1741558726636,3.2078,2022.4,2022.1,0.00741436]
[1741558726838,5.6668,2022.7,2022.1,0.00741436]
[1741558727040,5.6668,2022.7,2022.2,0.98905]
[1741558727238,3.2078,2022.4,2022.1,0.00741436]
[1741558728243,0.98907,2022.3,2022.1,0.99654436]
[1741558728443,0.9891,2022.2,2022.1,0.00741436]
[1741558728643,0.98908,2022.3,2022.1,0.99655436]
[1741558728830,0.9891,2022.2,2022.1,0.00741436]
[1741558729637,0.9891,2022.3,2022.1,0.00741436]
[1741558729838,3.2078,2022.4,2022.1,0.00741436]
[1741558730545,3.2078,2022.4,2022.2,0.98906]
[1741558730840,3.2078,2022.4,2022.1,0.00741436]
[1741558731045,4.19681,2022.4,2022.2,0.98908]
[1741558731243,0.6737,2022.6,2022.1,0.00741436]
[1741558731439,0.6838,2022.9,2022.4,3.2078]
[1741558731643,0.6838,2022.9,2022.8,0.9888]
[1741558731842,3.88911436,2023.1,2022.5,2.949]
[1741558732043,0.00741436,2023.1,2023.0,4.1965]
[1741558732439,4.19621,2023.7,2023.1,2.47157]
[1741558732640,0.6739,2023.8,2023.3,3.2078]
[1741558732835,3.2078,2023.7,2023.2,5.408]
[1741558733042,0.98856,2023.3,2023.2,5.408]
[1741558733340,4.19618,2023.7,2023.5,0.98844]
[1741558733544,0.00741436,2023.5,2023.4,0.98847]
[1741558733939,0.00741436,2023.5,2023.2,5.408]
[1741558734348,0.00741436,2023.5,2023.4,0.98851]
[1741558734941,3.2078,2024.1,2024.0,0.98822]
[1741558735438,0.98819,2024.1,2023.8,3.2078]
[1741558735645,0.98819,2024.1,2023.9,0.98825]
[1741558735841,0.6366,2024.3,2023.9,0.98826]
[1741558736043,0.98818,2024.1,2023.9,0.98826]
[1741558736248,0.98821,2024.1,2023.8,0.98829]
[1741558736443,0.98821,2024.1,2023.9,0.98825]
[1741558736650,3.21521436,2024.2,2023.7,2.459]
[1741558736948,0.98818,2024.1,2023.9,0.98824]
[1741558737649,0.98831,2023.8,2023.7,2.459]
[1741558737846,0.98831,2023.8,2023.4,7.5724]
[1741558737847,3.2078,2023.8,2023.4,2.459]
[1741558738046,3.2078,2024.1,2023.8,0.98831]
[1741558738242,3.2078,2024.1,2023.8,2.459]
[1741558738449,0.00741436,2024.2,2023.9,0.98822]
[1741558738644,0.98818,2024.1,2023.9,0.98822]
[1741558738844,0.98822,2024.0,2023.8,3.44729]
[1741558739041,3.2078,2024.1,2023.8,2.459]
[1741558739247,0.98827,2023.9,2023.8,2.459]
[1741558740053,0.6811,2024.1,2023.8,2.459]
[1741558740356,0.98824,2024.0,2023.8,3.4473]
[1741558740951,0.98824,2024.0,2023.8,3.44731]
[1741558741146,0.9882,2024.1,2023.9,0.98827]
[1741558741453,0.98828,2023.9,2023.7,4.19615]
[1741558741659,0.98828,2023.9,2023.7,6.65415]
[1741558741951,3.2078,2024.1,2023.7,5.6658]
[1741558742251,0.98831,2023.8,2023.7,5.6658]
[1741558742852,0.98831,2023.8,2023.7,6.65416]
[1741558743049,4.19611,2023.8,2023.7,2.458]
[1741558743254,4.19611,2023.8,2023.4,0.98848]
[1741558743255,3.2078,2023.8,2023.4,0.98848]
[1741558743447,3.2078,2023.8,2023.3,3.93752]
[1741558743650,0.98851,2023.4,2023.3,5.407]
[1741558743855,3.2078,2023.5,2023.1,6.39563]
[1741558744056,0.98861,2023.2,2023.1,5.407]
[1741558744252,3.11925,2023.7,2023.1,5.407]
[1741558744253,0.6483,2023.7,2023.1,5.407]
[1741558744555,0.98827,2023.9,2023.4,2.47128]
[1741558744756,0.98831,2023.9,2023.7,0.98835]
[1741558745257,0.98831,2023.8,2023.7,0.98835]
[1741558745452,1.65885,2024.0,2023.5,5.407]
[1741558745650,0.00741436,2024.2,2024.1,0.98817]
[1741558746052,0.6483,2024.5,2024.0,4.92852]
[1741558746253,5.57651,2025.0,2024.8,0.98779]
[1741558746254,3.8569,2025.0,2024.8,0.98779]
[1741558746565,3.2078,2025.0,2024.9,0.98778]
[1741558746758,3.2078,2025.0,2024.6,2.458]
[1741558746958,0.9878,2024.9,2024.7,0.98786]
[1741558747160,0.00741436,2025.0,2024.9,0.98778]
[1741558747358,0.00741436,2025.0,2024.8,0.9878]
[1741558747553,0.00741436,2025.0,2024.7,2.949]
[1741558747759,0.00741436,2025.0,2024.7,3.93683]
[1741558747959,0.00741436,2025.0,2024.7,2.949]
[1741558748164,0.98782,2024.9,2024.7,2.949]
[1741558748365,0.98783,2024.8,2024.7,2.949]
[1741558749162,0.98781,2024.9,2024.7,2.949]
[1741558749372,0.98783,2024.8,2024.7,2.949]
[1741558749674,0.9878,2024.9,2024.7,3.93686]
[1741558749859,3.21521436,2025.0,2024.7,2.949]
[1741558750267,0.98783,2024.8,2024.7,2.949]
[1741558750972,3.21521436,2025.0,2024.7,2.949]
[1741558751269,0.98783,2024.8,2024.7,2.949]
[1741558752768,0.98783,2024.8,2024.6,0.00741436]
[1741558752769,0.98787,2024.7,2024.6,0.00741436]
[1741558752968,2.46982,2024.6,2024.0,5.406]
[1741558753175,3.2078,2024.4,2023.7,2.949]
[1741558753473,4.19601,2024.1,2023.9,0.98827]
[1741558754072,0.98826,2024.0,2023.8,0.99570436]
[1741558754471,3.2078,2024.1,2023.8,0.99570436]
[1741558754472,4.19601,2024.1,2023.9,0.98825]
[1741558754777,4.5457,2024.6,2023.8,0.00741436]
[1741558755181,0.98814,2024.2,2024.0,0.9882]
[1741558755474,3.2078,2024.3,2023.8,0.00741436]
[1741558755671,0.98813,2024.2,2024.0,0.98819]
[1741558755873,4.19589,2024.3,2024.1,0.98814]
[1741558756277,0.98812,2024.2,2024.0,0.9882]
[1741558756577,3.2078,2024.3,2023.8,0.00741436]
[1741558756775,4.19589,2024.3,2024.1,0.98814]
[1741558756978,3.2078,2024.3,2024.0,3.2078]
[1741558757178,4.19588,2024.3,2024.1,0.98817]
[1741558757481,3.2078,2024.5,2024.4,0.98802]
[1741558757874,4.19579,2024.5,2024.3,0.98803]
[1741558758073,4.19579,2024.5,2024.4,0.98802]
[1741558758377,3.2078,2024.5,2024.4,0.98802]
[1741558758877,3.89661436,2025.0,2024.4,3.2078]
[1741558759172,3.89661436,2025.0,2024.5,2.457]
[1741558759379,0.9879,2024.7,2024.5,3.44493]
[1741558759578,0.98778,2024.9,2024.5,2.457]
[1741558759774,0.98786,2024.8,2024.6,0.9879]
[1741558759976,0.98792,2024.6,2024.5,2.457]
[1741558761077,0.98817,2024.1,2024.0,3.4452]
[1741558761278,0.98817,2024.1,2024.0,3.44522]
[1741558761476,3.2078,2024.3,2023.9,5.406]
[1741558761773,0.98812,2024.2,2024.1,0.98812]
[1741558762276,4.1959,2024.3,2024.1,0.98812]
[1741558762579,3.2078,2024.3,2023.9,5.406]
[1741558762777,0.98822,2024.0,2023.9,2.949]
[1741558763077,3.2078,2024.3,2023.9,2.949]
[1741558763280,1.3235,2024.5,2023.9,2.949]
[1741558763574,3.21521436,2025.0,2024.2,3.2078]
[1741558763780,3.21521436,2025.0,2024.3,3.1172]
[1741558764179,0.98778,2024.9,2024.7,0.98784]
[1741558764382,0.98782,2024.9,2024.7,0.98784]
[1741558764781,0.98797,2024.5,2024.4,2.949]
[1741558764985,3.2078,2024.6,2024.4,2.949]
[1741558765281,3.2078,2024.9,2024.5,0.98797]
[1741558765488,0.98797,2024.5,2024.4,3.937]
[1741558765785,4.1956,2024.9,2024.4,5.41903]
[1741558766081,0.00741436,2025.0,2024.9,0.98778]
[1741558768086,0.00741436,2025.0,2024.8,2.456]
[1741558768287,0.99517436,2025.0,2024.8,3.44381]
[1741558768585,0.00741436,2025.0,2024.7,2.949]
[1741558768791,0.98783,2024.8,2024.7,2.949]
[1741558768992,1.6454,2024.9,2024.7,3.93685]
[1741558769290,0.98783,2024.8,2024.7,3.93685]
[1741558769483,0.98783,2024.8,2024.7,2.949]
[1741558770187,0.00741436,2025.0,2024.9,0.98778]
[1741558770385,0.99515436,2025.0,2024.8,0.98783]
[1741558770582,0.00741436,2025.0,2024.7,2.949]
[1741558771287,0.00741436,2025.0,2024.9,0.98778]
[1741558772283,0.00741436,2025.0,2024.9,4.98778]
[1741558772483,3.2078,2025.8,2025.4,0.98752]
[1741558772684,3.2078,2025.8,2025.3,3.44357]
[1741558772986,0.98753,2025.4,2025.3,2.456]
[1741558773194,4.19516,2025.8,2025.6,0.98742]
[1741558773489,4.19516,2025.8,2025.5,0.98745]
[1741558773792,4.19516,2025.8,2025.5,0.99486436]
[1741558773987,0.98744,2025.6,2025.5,0.00741436]
[1741558774689,4.98744,2025.6,2025.5,0.00741436]
[1741558774987,0.7033,2025.6,2025.0,2.456]
[1741558775185,3.2078,2025.1,2024.9,2.949]
[1741558775385,0.98784,2024.8,2024.7,2.456]
[1741558775688,3.2078,2025.1,2024.7,2.456]
[1741558775689,0.98775,2025.0,2024.8,0.98782]
[1741558775883,0.98779,2024.9,2024.7,2.456]
[1741558776088,0.98775,2025.0,2024.8,0.98782]
[1741558776288,3.2078,2025.1,2024.7,2.456]
[1741558776692,1.6635,2025.3,2025.0,0.98773]
[1741558776997,1.6635,2025.3,2025.0,0.98769]
[1741558777181,1.6635,2025.3,2025.1,0.98766]
[1741558777385,0.98758,2025.4,2025.2,0.98762]
[1741558777582,0.98758,2025.4,2024.9,0.6627]
[1741558777788,0.98758,2025.4,2025.1,0.98766]
[1741558777988,4.19531,2025.5,2024.9,3.8705]
[1741558778192,3.2078,2025.5,2024.9,3.8705]
[1741558778393,3.2078,2025.5,2025.4,0.98753]
[1741558778582,3.2078,2025.5,2025.3,5.404]
[1741558778892,0.7033,2025.6,2025.3,5.404]
[1741558779086,1.6633,2025.7,2025.5,0.98748]
[1741558779489,3.2078,2025.8,2025.3,5.404]
[1741558779790,0.99473436,2025.9,2025.4,6.1568]
[1741558779987,3.2078,2025.8,2025.4,6.8363]
[1741558780193,0.98747,2025.6,2025.4,3.93652]
[1741558780389,3.2078,2025.8,2025.4,2.949]
[1741558780590,0.98761,2025.3,2025.1,3.6285]
[1741558780787,0.98763,2025.2,2025.1,5.404]
[1741558780983,0.98744,2025.6,2025.1,8.6118]
[1741558781191,0.6376,2025.8,2025.1,15.17642429]
[1741558781390,3.2078,2025.6,2025.1,16.16408429]
[1741558781586,3.2078,2025.6,2025.3,0.98754]
[1741558781791,0.98757,2025.4,2025.2,0.98761]
[1741558781994,0.98754,2025.4,2025.1,5.404]
[1741558782192,3.2078,2025.6,2025.1,5.404]
[1741558782193,0.98763,2025.2,2025.1,5.404]
[1741558782396,0.98763,2025.2,2024.9,0.98774]
[1741558782397,0.98768,2025.2,2024.9,0.98775]
[1741558782593,0.6376,2025.3,2024.8,5.6628]
[1741558782892,0.6376,2025.3,2025.2,0.98763]
[1741558783093,4.19526,2025.6,2025.4,0.98751]
[1741558783291,4.19526,2025.6,2025.2,2.455]
[1741558783292,3.2078,2025.6,2025.2,2.455]
[1741558783700,0.98753,2025.4,2025.2,3.4426]
[1741558783902,0.98758,2025.3,2025.2,2.455]
[1741558784290,5.67645,2025.6,2025.0,3.2078]
[1741558784503,0.98768,2025.1,2025.0,3.2078]
[1741558784895,5.67645,2025.6,2025.0,3.2078]
[1741558785090,0.98767,2025.2,2025.0,4.19553]
[1741558785299,5.67645,2025.6,2025.0,3.2078]
[1741558785598,2.46872,2025.5,2025.0,3.2078]
[1741558785801,0.98762,2025.3,2025.1,0.98766]
[1741558786101,3.2078,2025.6,2025.2,2.949]
[1741558786305,0.648,2025.8,2025.7,0.98739]
[1741558786504,0.98749,2025.5,2025.3,3.44255]
[1741558786695,3.2078,2025.7,2025.5,0.00741436]
[1741558787001,3.2078,2025.7,2025.6,0.98744]
[1741558787300,0.98744,2025.6,2025.5,0.99488436]
[1741558787494,0.648,2025.8,2025.7,0.98739]
[1741558787895,0.98741,2025.7,2025.5,0.99489436]
[1741558788500,0.648,2025.8,2025.5,0.00741436]
[1741558788796,0.98744,2025.6,2025.5,0.00741436]
[1741558791299,3.8655,2025.7,2025.5,0.00741436]
[1741558791500,4.85291,2025.7,2025.5,0.00741436]
[1741558791697,0.98744,2025.6,2025.5,0.00741436]
[1741558791901,0.98744,2025.6,2025.5,0.99489436]
[1741558792302,0.98744,2025.6,2025.5,0.00741436]
[1741558798618,3.2078,2025.7,2025.5,0.99489436]
[1741558798823,3.2078,2025.7,2025.5,0.00741436]
[1741558799025,3.2078,2025.7,2025.6,0.98744]
[1741558799221,0.00741436,2025.9,2025.5,0.00741436]
[1741558799421,0.6578,2026.2,2026.0,0.98724]
[1741558799620,3.2078,2026.4,2025.9,2.455]
[1741558799825,4.19487,2026.4,2026.2,0.98713]
[1741558800024,3.2078,2026.4,2025.9,2.455]
[1741558800324,0.98709,2026.3,2026.2,0.98713]
[1741558800629,0.98712,2026.3,2026.1,0.98717]
[1741558800918,4.19488,2026.4,2026.2,0.98712]
[1741558801124,3.2078,2026.4,2025.9,2.455]
[1741558801323,4.19486,2026.4,2026.2,0.9871]
[1741558801519,0.98712,2026.3,2025.9,2.455]
[1741558801719,4.19487,2026.4,2026.2,0.98711]
[1741558801921,3.2078,2026.4,2026.2,0.98711]
[1741558802123,3.2078,2026.4,2025.9,5.6168]
[1741558802317,0.00741436,2026.5,2026.4,0.98705]
[1741558802516,0.98709,2026.3,2026.2,2.949]
[1741558803225,1.68059,2026.3,2026.2,2.949]
[1741558803419,0.6935,2026.3,2026.2,2.949]